[Event "Titled Tuesday Blitz June 20 Early 2023"]
[White "Goltsev, Dmitry"]
[Black "Zeman, Matyas"]
[WhiteFideId "24176710"]
[BlackFideId "364398"]
[WhiteElo "2356"]
[BlackElo "2254"]
[Result "1-0"]
[Round "1"]
[TimeControl "180+2"]
[Date "2023.06.20"]
[WhiteClock "0:00:07"]
[BlackClock "0:00:03"]
[Board "73"]

1. e3 {[%clk 0:02:51]}  Nf6 {[%clk 0:02:58]} 2. d4 {[%clk 0:02:51]}  d5 {[%clk 0:02:58]} 3. Nf3 {[%clk 0:02:50]}  c6 {[%clk 0:02:49]} 4. c4 {[%clk 0:02:50]}  e6 {[%clk 0:02:49]} 5. Nc3 {[%clk 0:02:50]}  Nbd7 {[%clk 0:02:49]} 6. Bd3 {[%clk 0:02:51]}  Bd6 {[%clk 0:02:49]} 7. O-O {[%clk 0:02:48]}  O-O {[%clk 0:02:43]} 8. e4 {[%clk 0:02:48]}  dxc4 {[%clk 0:02:36]} 9. Bxc4 {[%clk 0:02:45]}  e5 {[%clk 0:02:37]} 10. Bg5 {[%clk 0:02:40]}  Qc7 {[%clk 0:02:30]} 11. h3 {[%clk 0:02:34]}  h6 {[%clk 0:02:19]} 12. Bh4 {[%clk 0:02:32]}  exd4 {[%clk 0:02:10]} 13. Nxd4 {[%clk 0:02:31]}  Ne5 {[%clk 0:02:11]} 14. Bb3 {[%clk 0:02:28]}  g5 {[%clk 0:01:40]} 15. Bg3 {[%clk 0:02:26]}  Ng6 {[%clk 0:01:28]} 16. Ndb5 {[%clk 0:02:12]}  cxb5 {[%clk 0:01:29]} 17. Nxb5 {[%clk 0:02:11]}  Bxg3 {[%clk 0:01:29]} 18. Nxc7 {[%clk 0:02:10]}  Bxc7 {[%clk 0:01:30]} 19. Qc2 {[%clk 0:02:02]}  Be5 {[%clk 0:01:25]} 20. Rad1 {[%clk 0:02:01]}  Bd7 {[%clk 0:01:07]} 21. Qe2 {[%clk 0:01:47]}  Bc6 {[%clk 0:00:58]} 22. Rfe1 {[%clk 0:01:39]}  Nf4 {[%clk 0:00:55]} 23. Qc2 {[%clk 0:01:37]}  Rac8 {[%clk 0:00:52]} 24. Qb1 {[%clk 0:01:34]}  Kg7 {[%clk 0:00:49]} 25. Bd5 {[%clk 0:01:28]}  Rfd8 {[%clk 0:00:44]} 26. b4 {[%clk 0:01:24]}  a6 {[%clk 0:00:37]} 27. Qb3 {[%clk 0:01:18]}  Rc7 {[%clk 0:00:34]} 28. a4 {[%clk 0:01:12]}  N4xd5 {[%clk 0:00:25]} 29. exd5 {[%clk 0:01:11]}  Bxd5 {[%clk 0:00:26]} 30. Qe3 {[%clk 0:01:06]}  Bc3 {[%clk 0:00:20]} 31. Qb6 {[%clk 0:00:49]}  Rdc8 {[%clk 0:00:19]} 32. Re3 {[%clk 0:00:35]}  Be6 {[%clk 0:00:16]} 33. Red3 {[%clk 0:00:16]}  Be5 {[%clk 0:00:14]} 34. g3 {[%clk 0:00:14]}  Bxh3 {[%clk 0:00:13]} 35. Re1 {[%clk 0:00:14]}  Bc3 {[%clk 0:00:11]} 36. Red1 {[%clk 0:00:13]}  Be6 {[%clk 0:00:11]} 37. b5 {[%clk 0:00:12]}  a5 {[%clk 0:00:11]} 38. Qe3 {[%clk 0:00:11]}  Bb4 {[%clk 0:00:10]} 39. Kg2 {[%clk 0:00:07]}  g4 {[%clk 0:00:09]} 40. Qe5 {[%clk 0:00:07]}  Rc5 {[%clk 0:00:08]} 41. Qa1 {[%clk 0:00:07]}  Rf5 {[%clk 0:00:08]} 42. Rf1 {[%clk 0:00:05]}  h5 {[%clk 0:00:08]} 43. Kg1 {[%clk 0:00:05]}  Kg6 {[%clk 0:00:08]} 44. Rd4 {[%clk 0:00:05]}  Rc2 {[%clk 0:00:08]} 45. Rf4 {[%clk 0:00:05]}  Rxf4 {[%clk 0:00:07]} 46. gxf4 {[%clk 0:00:05]}  Bc5 {[%clk 0:00:08]} 47. Qe5 {[%clk 0:00:06]}  b6 {[%clk 0:00:08]} 48. Qg5+ {[%clk 0:00:06]}  Kh7 {[%clk 0:00:08]} 49. Qxf6 {[%clk 0:00:06]}  g3 {[%clk 0:00:08]} 50. Qg5 {[%clk 0:00:04]}  gxf2+ {[%clk 0:00:07]} 51. Kg2 {[%clk 0:00:04]}  Bd5+ {[%clk 0:00:07]} 52. Qxd5 {[%clk 0:00:03]}  Rc3 {[%clk 0:00:05]} 53. Qxh5+ {[%clk 0:00:04]}  Kg7 {[%clk 0:00:05]} 54. Qg5+ {[%clk 0:00:04]}  Kf8 {[%clk 0:00:06]} 55. Qd8+ {[%clk 0:00:05]}  Kg7 {[%clk 0:00:06]} 56. Qg5+ {[%clk 0:00:05]}  Kf8 {[%clk 0:00:06]} 57. Qe5 {[%clk 0:00:06]}  Re3 {[%clk 0:00:06]} 58. Qh8+ {[%clk 0:00:05]}  Ke7 {[%clk 0:00:06]} 59. Rxf2 {[%clk 0:00:06]}  Re4 {[%clk 0:00:06]} 60. Qh4+ {[%clk 0:00:07]}  Ke6 {[%clk 0:00:06]} 61. Rf1 {[%clk 0:00:07]}  Re2+ {[%clk 0:00:03]} 62. Kh1 {[%clk 0:00:07]} 1-0


[Site "https://www.chess.com"]

[Event "Titled Tuesday Blitz June 20 Early 2023"]
[White "Maksimovic, Bojan"]
[Black "Gomez Barrera, Javiera Belen"]
[WhiteFideId "14408120"]
[BlackFideId "3418723"]
[WhiteElo "2457"]
[BlackElo "2119"]
[Result "1-0"]
[Round "1"]
[TimeControl "180+2"]
[Date "2023.06.20"]
[WhiteClock "0:01:20"]
[BlackClock "0:00:00"]
[Board "75"]

1. e4 {[%clk 0:02:55]}  d6 {[%clk 0:02:57]} 2. d4 {[%clk 0:02:55]}  Nf6 {[%clk 0:02:57]} 3. Nc3 {[%clk 0:02:53]}  e5 {[%clk 0:02:58]} 4. Nf3 {[%clk 0:02:54]}  Nbd7 {[%clk 0:02:57]} 5. Bc4 {[%clk 0:02:54]}  Be7 {[%clk 0:02:52]} 6. O-O {[%clk 0:02:54]}  O-O {[%clk 0:02:53]} 7. Re1 {[%clk 0:02:53]}  h6 {[%clk 0:02:51]} 8. a4 {[%clk 0:02:51]}  Re8 {[%clk 0:02:50]} 9. h3 {[%clk 0:02:49]}  Bf8 {[%clk 0:02:51]} 10. a5 {[%clk 0:02:44]}  Rb8 {[%clk 0:02:43]} 11. a6 {[%clk 0:02:31]}  bxa6 {[%clk 0:02:24]} 12. Bxa6 {[%clk 0:02:28]}  exd4 {[%clk 0:02:14]} 13. Nxd4 {[%clk 0:02:26]}  Bxa6 {[%clk 0:02:09]} 14. Rxa6 {[%clk 0:02:25]}  Nc5 {[%clk 0:01:28]} 15. Rxa7 {[%clk 0:02:19]}  Qd7 {[%clk 0:00:46]} 16. Qf3 {[%clk 0:02:09]}  Rb4 {[%clk 0:00:34]} 17. Be3 {[%clk 0:01:35]}  Ncxe4 {[%clk 0:00:26]} 18. Nxe4 {[%clk 0:01:35]}  Rxe4 {[%clk 0:00:24]} 19. Rd1 {[%clk 0:01:24]}  Rxb2 {[%clk 0:00:18]} 20. Bxh6 {[%clk 0:01:25]}  Qe7 {[%clk 0:00:06]} 21. Be3 {[%clk 0:01:24]}  Nd5 {[%clk 0:00:04]} 22. Nf5 {[%clk 0:01:24]}  Qe5 {[%clk 0:00:00]} 23. Bd4 {[%clk 0:01:20]} 1-0


[Site "https://www.chess.com"]

[Event "Titled Tuesday Blitz June 20 Early 2023"]
[White "Bazilius, Augustinas"]
[Black "Lagarde, Maxime"]
[WhiteFideId "12832251"]
[BlackFideId "662399"]
[WhiteElo "1980"]
[BlackElo "2571"]
[Result "0-1"]
[Round "1"]
[TimeControl "180+2"]
[Date "2023.06.20"]
[WhiteClock "0:00:04"]
[BlackClock "0:00:10"]
[Board "76"]

1. d4 {[%clk 0:02:59]}  d5 {[%clk 0:02:55]} 2. c4 {[%clk 0:02:59]}  e6 {[%clk 0:02:55]} 3. Nf3 {[%clk 0:02:53]}  Nf6 {[%clk 0:02:52]} 4. g3 {[%clk 0:02:52]}  c5 {[%clk 0:02:50]} 5. cxd5 {[%clk 0:01:49]}  exd5 {[%clk 0:02:50]} 6. Bg2 {[%clk 0:01:49]}  c4 {[%clk 0:02:50]} 7. Nc3 {[%clk 0:01:48]}  Bb4 {[%clk 0:02:50]} 8. O-O {[%clk 0:01:25]}  O-O {[%clk 0:02:46]} 9. Bg5 {[%clk 0:01:21]}  Bxc3 {[%clk 0:02:44]} 10. bxc3 {[%clk 0:01:21]}  h6 {[%clk 0:02:36]} 11. Bxf6 {[%clk 0:01:19]}  Qxf6 {[%clk 0:02:37]} 12. Ne5 {[%clk 0:01:19]}  Be6 {[%clk 0:02:35]} 13. e4 {[%clk 0:01:17]}  dxe4 {[%clk 0:02:25]} 14. Bxe4 {[%clk 0:01:18]}  Nc6 {[%clk 0:02:25]} 15. Nxc6 {[%clk 0:01:17]}  bxc6 {[%clk 0:02:26]} 16. Bxc6 {[%clk 0:01:17]}  Rad8 {[%clk 0:02:25]} 17. Qf3 {[%clk 0:01:15]}  Qg5 {[%clk 0:02:15]} 18. Rab1 {[%clk 0:01:09]}  Qa5 {[%clk 0:02:14]} 19. a4 {[%clk 0:01:08]}  Rb8 {[%clk 0:02:05]} 20. Rb5 {[%clk 0:01:03]}  Rxb5 {[%clk 0:02:03]} 21. axb5 {[%clk 0:01:04]}  a6 {[%clk 0:01:48]} 22. bxa6 {[%clk 0:01:01]}  Qxa6 {[%clk 0:01:49]} 23. d5 {[%clk 0:01:02]}  Bh3 {[%clk 0:01:38]} 24. Rd1 {[%clk 0:01:01]}  Rd8 {[%clk 0:01:29]} 25. d6 {[%clk 0:00:50]}  Bd7 {[%clk 0:01:18]} 26. Bxd7 {[%clk 0:00:44]}  Rxd7 {[%clk 0:01:19]} 27. Qd5 {[%clk 0:00:43]}  g6 {[%clk 0:01:14]} 28. Rd4 {[%clk 0:00:42]}  h5 {[%clk 0:01:09]} 29. Rxc4 {[%clk 0:00:40]}  Rxd6 {[%clk 0:01:01]} 30. Rc8+ {[%clk 0:00:31]}  Qxc8 {[%clk 0:01:00]} 31. Qxd6 {[%clk 0:00:31]}  Qxc3 {[%clk 0:01:00]} 32. Qf4 {[%clk 0:00:32]}  Qd3 {[%clk 0:00:59]} 33. Kg2 {[%clk 0:00:32]}  Qd5+ {[%clk 0:00:59]} 34. Kg1 {[%clk 0:00:31]}  Kf8 {[%clk 0:00:59]} 35. Qb8+ {[%clk 0:00:31]}  Ke7 {[%clk 0:00:59]} 36. Qc7+ {[%clk 0:00:32]}  Ke6 {[%clk 0:00:58]} 37. Qc8+ {[%clk 0:00:32]}  Kf6 {[%clk 0:00:57]} 38. Qc3+ {[%clk 0:00:31]}  Kf5 {[%clk 0:00:56]} 39. Qc2+ {[%clk 0:00:31]}  Kg4 {[%clk 0:00:50]} 40. Qe2+ {[%clk 0:00:31]}  Kh3 {[%clk 0:00:43]} 41. Qf1+ {[%clk 0:00:28]}  Kg4 {[%clk 0:00:44]} 42. Qe2+ {[%clk 0:00:28]}  Kf5 {[%clk 0:00:43]} 43. Qc2+ {[%clk 0:00:27]}  Qe4 {[%clk 0:00:41]} 44. Qc8+ {[%clk 0:00:27]}  Kg5 {[%clk 0:00:33]} 45. Qd8+ {[%clk 0:00:26]}  Kf5 {[%clk 0:00:31]} 46. Qc8+ {[%clk 0:00:26]}  Qe6 {[%clk 0:00:29]} 47. Qc2+ {[%clk 0:00:26]}  Ke5 {[%clk 0:00:29]} 48. Qe2+ {[%clk 0:00:25]}  Kd6 {[%clk 0:00:29]} 49. Qd3+ {[%clk 0:00:26]}  Qd5 {[%clk 0:00:29]} 50. Qa6+ {[%clk 0:00:25]}  Ke5 {[%clk 0:00:30]} 51. Qe2+ {[%clk 0:00:25]}  Kd4 {[%clk 0:00:30]} 52. Qd2+ {[%clk 0:00:24]}  Kc5 {[%clk 0:00:31]} 53. Qc3+ {[%clk 0:00:24]}  Qc4 {[%clk 0:00:31]} 54. Qe5+ {[%clk 0:00:23]}  Kb4 {[%clk 0:00:31]} 55. Qb2+ {[%clk 0:00:21]}  Qb3 {[%clk 0:00:31]} 56. Qd4+ {[%clk 0:00:22]}  Kb5 {[%clk 0:00:32]} 57. Qe5+ {[%clk 0:00:22]}  Kc4 {[%clk 0:00:31]} 58. Qe4+ {[%clk 0:00:22]}  Kc3 {[%clk 0:00:32]} 59. Qe3+ {[%clk 0:00:19]}  Kb2 {[%clk 0:00:32]} 60. Qd2+ {[%clk 0:00:20]}  Qc2 {[%clk 0:00:32]} 61. Qb4+ {[%clk 0:00:16]}  Kc1 {[%clk 0:00:29]} 62. Qf4+ {[%clk 0:00:17]}  Qd2 {[%clk 0:00:28]} 63. Qxf7 {[%clk 0:00:17]}  Qd3 {[%clk 0:00:27]} 64. Kg2 {[%clk 0:00:16]}  Kd2 {[%clk 0:00:24]} 65. Qf3 {[%clk 0:00:17]}  Qb1 {[%clk 0:00:19]} 66. Qe3+ {[%clk 0:00:17]}  Kd1 {[%clk 0:00:19]} 67. f3 {[%clk 0:00:13]}  Qc2+ {[%clk 0:00:19]} 68. Qf2 {[%clk 0:00:13]}  Qf5 {[%clk 0:00:18]} 69. Qb2 {[%clk 0:00:11]}  Qd3 {[%clk 0:00:14]} 70. Kf2 {[%clk 0:00:08]}  Qd6 {[%clk 0:00:12]} 71. Qe2+ {[%clk 0:00:08]}  Kc1 {[%clk 0:00:12]} 72. Qe3+ {[%clk 0:00:08]}  Kc2 {[%clk 0:00:12]} 73. Qe4+ {[%clk 0:00:09]}  Kc3 {[%clk 0:00:11]} 74. Qxg6 {[%clk 0:00:04]}  Qxg6 {[%clk 0:00:10]} 0-1


[Site "https://www.chess.com"]

[Event "Titled Tuesday Blitz June 20 Early 2023"]
[White "Sattarov, Bobir"]
[Black "Gheorghiu, Calin"]
[WhiteFideId "14203081"]
[BlackFideId "1200305"]
[WhiteElo "2351"]
[BlackElo "2204"]
[Result "1/2-1/2"]
[Round "1"]
[TimeControl "180+2"]
[Date "2023.06.20"]
[WhiteClock "0:00:06"]
[BlackClock "0:00:07"]
[Board "77"]

1. e4 {[%clk 0:02:53]}  c5 {[%clk 0:02:59]} 2. Nf3 {[%clk 0:02:52]}  d6 {[%clk 0:02:59]} 3. d4 {[%clk 0:02:52]}  cxd4 {[%clk 0:02:59]} 4. Nxd4 {[%clk 0:02:53]}  Nf6 {[%clk 0:03:00]} 5. f3 {[%clk 0:02:53]}  e5 {[%clk 0:02:58]} 6. Nb3 {[%clk 0:02:53]}  d5 {[%clk 0:02:58]} 7. Bg5 {[%clk 0:02:53]}  d4 {[%clk 0:02:52]} 8. c3 {[%clk 0:02:53]}  Nc6 {[%clk 0:02:50]} 9. cxd4 {[%clk 0:02:53]}  exd4 {[%clk 0:02:50]} 10. Bb5 {[%clk 0:02:52]}  Bb4+ {[%clk 0:02:38]} 11. Bd2 {[%clk 0:02:50]}  O-O {[%clk 0:02:38]} 12. Bxc6 {[%clk 0:02:48]}  Bxd2+ {[%clk 0:02:37]} 13. Qxd2 {[%clk 0:02:49]}  bxc6 {[%clk 0:02:38]} 14. Qxd4 {[%clk 0:02:50]}  Qxd4 {[%clk 0:02:28]} 15. Nxd4 {[%clk 0:02:50]}  c5 {[%clk 0:02:29]} 16. Nb3 {[%clk 0:02:47]}  c4 {[%clk 0:02:29]} 17. Na5 {[%clk 0:02:47]}  Ba6 {[%clk 0:02:22]} 18. Na3 {[%clk 0:02:45]}  Rab8 {[%clk 0:02:14]} 19. N5xc4 {[%clk 0:02:43]}  Rfc8 {[%clk 0:02:11]} 20. b3 {[%clk 0:02:43]}  Nd7 {[%clk 0:02:08]} 21. Rd1 {[%clk 0:02:40]}  Nc5 {[%clk 0:02:07]} 22. Kf2 {[%clk 0:02:40]}  Na4 {[%clk 0:01:51]} 23. Nd6 {[%clk 0:02:25]}  Rc3 {[%clk 0:01:44]} 24. Rd2 {[%clk 0:02:17]}  Nc5 {[%clk 0:01:39]} 25. Rhd1 {[%clk 0:02:14]}  g6 {[%clk 0:01:36]} 26. Nac4 {[%clk 0:02:13]}  Rd8 {[%clk 0:01:32]} 27. Kg3 {[%clk 0:02:08]}  Bxc4 {[%clk 0:01:29]} 28. bxc4 {[%clk 0:02:06]}  Rxd6 {[%clk 0:01:24]} 29. Rxd6 {[%clk 0:02:06]}  Nxe4+ {[%clk 0:01:24]} 30. Kh3 {[%clk 0:02:05]}  Nf2+ {[%clk 0:01:11]} 31. Kg3 {[%clk 0:02:05]}  Ne4+ {[%clk 0:01:10]} 32. Kf4 {[%clk 0:01:15]}  Nxd6 {[%clk 0:01:08]} 33. Rxd6 {[%clk 0:01:16]}  Rxc4+ {[%clk 0:01:08]} 34. Ke5 {[%clk 0:01:16]}  Rc2 {[%clk 0:01:02]} 35. Kf6 {[%clk 0:01:08]}  h5 {[%clk 0:00:57]} 36. a4 {[%clk 0:00:56]}  Rxg2 {[%clk 0:00:46]} 37. Rd8+ {[%clk 0:00:54]}  Kh7 {[%clk 0:00:46]} 38. Rd7 {[%clk 0:00:55]}  Rf2 {[%clk 0:00:28]} 39. Rxf7+ {[%clk 0:00:54]}  Kh6 {[%clk 0:00:29]} 40. Ke5 {[%clk 0:00:51]}  Rxh2 {[%clk 0:00:27]} 41. Rxa7 {[%clk 0:00:50]}  h4 {[%clk 0:00:26]} 42. a5 {[%clk 0:00:44]}  Kg5 {[%clk 0:00:23]} 43. Rg7 {[%clk 0:00:06]}  Re2+ {[%clk 0:00:22]} 44. Kd4 {[%clk 0:00:06]}  h3 {[%clk 0:00:22]} 45. a6 {[%clk 0:00:05]}  Ra2 {[%clk 0:00:19]} 46. a7 {[%clk 0:00:04]}  h2 {[%clk 0:00:18]} 47. Rh7 {[%clk 0:00:05]}  Rxa7 {[%clk 0:00:05]} 48. Rxh2 {[%clk 0:00:05]}  Ra4+ {[%clk 0:00:05]} 49. Ke5 {[%clk 0:00:04]}  Ra5+ {[%clk 0:00:06]} 50. Ke4 {[%clk 0:00:05]}  Ra4+ {[%clk 0:00:06]} 51. Ke5 {[%clk 0:00:06]}  Ra5+ {[%clk 0:00:06]} 52. Ke4 {[%clk 0:00:06]}  Ra4+ {[%clk 0:00:06]} 53. Ke3 {[%clk 0:00:06]}  Ra3+ {[%clk 0:00:07]} 54. Ke4 {[%clk 0:00:06]}  Ra4+ {[%clk 0:00:07]} 1/2-1/2


[Site "https://www.chess.com"]

[Event "Titled Tuesday Blitz June 20 Early 2023"]
[White "Zemlyanskii, Ivan"]
[Black "Heinemann, Josefine"]
[WhiteFideId "24249971"]
[BlackFideId "12900460"]
[WhiteElo "2421"]
[BlackElo "2342"]
[Result "1-0"]
[Round "1"]
[TimeControl "180+2"]
[Date "2023.06.20"]
[WhiteClock "0:00:08"]
[BlackClock "0:00:14"]
[Board "79"]

1. d4 {[%clk 0:02:59]}  d5 {[%clk 0:02:57]} 2. Bf4 {[%clk 0:02:59]}  Nf6 {[%clk 0:02:55]} 3. e3 {[%clk 0:02:59]}  c5 {[%clk 0:02:54]} 4. c3 {[%clk 0:02:54]}  Nc6 {[%clk 0:02:52]} 5. Nf3 {[%clk 0:02:55]}  Qb6 {[%clk 0:02:46]} 6. Qc2 {[%clk 0:02:55]}  e6 {[%clk 0:02:35]} 7. h3 {[%clk 0:02:49]}  Be7 {[%clk 0:02:33]} 8. Nbd2 {[%clk 0:02:48]}  O-O {[%clk 0:02:33]} 9. Bd3 {[%clk 0:02:46]}  Bd7 {[%clk 0:02:26]} 10. Ne5 {[%clk 0:02:45]}  Rfd8 {[%clk 0:02:23]} 11. O-O {[%clk 0:02:35]}  h6 {[%clk 0:02:20]} 12. Rad1 {[%clk 0:02:09]}  Nxe5 {[%clk 0:02:14]} 13. dxe5 {[%clk 0:02:03]}  Ne8 {[%clk 0:02:12]} 14. e4 {[%clk 0:01:46]}  dxe4 {[%clk 0:02:10]} 15. Nxe4 {[%clk 0:01:39]}  Bc6 {[%clk 0:02:07]} 16. c4 {[%clk 0:01:37]}  Rd7 {[%clk 0:02:01]} 17. b3 {[%clk 0:01:24]}  Rad8 {[%clk 0:01:59]} 18. Be2 {[%clk 0:01:24]}  Rxd1 {[%clk 0:01:57]} 19. Bxd1 {[%clk 0:01:24]}  Rd7 {[%clk 0:01:43]} 20. Bf3 {[%clk 0:01:19]}  Qd8 {[%clk 0:01:42]} 21. Be3 {[%clk 0:01:13]}  Bxe4 {[%clk 0:01:23]} 22. Bxe4 {[%clk 0:01:09]}  b6 {[%clk 0:01:22]} 23. f4 {[%clk 0:01:07]}  f5 {[%clk 0:01:21]} 24. exf6 {[%clk 0:01:07]}  Nxf6 {[%clk 0:01:21]} 25. Bg6 {[%clk 0:00:52]}  Rd6 {[%clk 0:01:09]} 26. Qe2 {[%clk 0:00:49]}  Qd7 {[%clk 0:01:06]} 27. g4 {[%clk 0:00:47]}  Nh7 {[%clk 0:00:59]} 28. Be4 {[%clk 0:00:43]}  Nf6 {[%clk 0:00:54]} 29. Bc2 {[%clk 0:00:43]}  Nh7 {[%clk 0:00:50]} 30. Qf3 {[%clk 0:00:29]}  Nf8 {[%clk 0:00:46]} 31. g5 {[%clk 0:00:28]}  hxg5 {[%clk 0:00:38]} 32. fxg5 {[%clk 0:00:29]}  Qe8 {[%clk 0:00:38]} 33. Bf4 {[%clk 0:00:24]}  Rd4 {[%clk 0:00:35]} 34. Be3 {[%clk 0:00:22]}  Rd6 {[%clk 0:00:35]} 35. Qg4 {[%clk 0:00:21]}  Qd8 {[%clk 0:00:26]} 36. Qh5 {[%clk 0:00:17]}  Rd3 {[%clk 0:00:24]} 37. Bxd3 {[%clk 0:00:15]}  Qxd3 {[%clk 0:00:25]} 38. Qf7+ {[%clk 0:00:10]}  Kh7 {[%clk 0:00:25]} 39. Qf3 {[%clk 0:00:09]}  Ng6 {[%clk 0:00:22]} 40. Bf4 {[%clk 0:00:10]}  Qd4+ {[%clk 0:00:22]} 41. Be3 {[%clk 0:00:09]}  Qd3 {[%clk 0:00:22]} 42. Rd1 {[%clk 0:00:06]}  Qc2 {[%clk 0:00:21]} 43. Rd7 {[%clk 0:00:05]}  Qb1+ {[%clk 0:00:17]} 44. Kh2 {[%clk 0:00:06]}  Qxa2+ {[%clk 0:00:16]} 45. Kg3 {[%clk 0:00:06]}  Bf8 {[%clk 0:00:15]} 46. Qh5+ {[%clk 0:00:05]}  Kg8 {[%clk 0:00:15]} 47. Qxg6 {[%clk 0:00:06]}  Qxb3 {[%clk 0:00:15]} 48. Qf7+ {[%clk 0:00:07]}  Kh7 {[%clk 0:00:14]} 49. g6+ {[%clk 0:00:07]}  Kh8 {[%clk 0:00:14]} 50. Qxf8# {[%clk 0:00:08]} 1-0


[Site "https://www.chess.com"]

[Event "Titled Tuesday Blitz June 20 Early 2023"]
[White "Andreev, Konstantin"]
[Black "Vakhlamov, Igor L."]
[WhiteFideId "24239305"]
[BlackFideId "24126748"]
[WhiteElo "2106"]
[BlackElo "2407"]
[Result "1-0"]
[Round "1"]
[TimeControl "180+2"]
[Date "2023.06.20"]
[WhiteClock "0:00:25"]
[BlackClock "0:00:09"]
[Board "84"]

1. e4 {[%clk 0:02:59]}  c5 {[%clk 0:02:58]} 2. Nf3 {[%clk 0:03:00]}  e6 {[%clk 0:02:59]} 3. d4 {[%clk 0:03:01]}  cxd4 {[%clk 0:03:00]} 4. Nxd4 {[%clk 0:03:01]}  Nf6 {[%clk 0:03:00]} 5. Nc3 {[%clk 0:03:01]}  Nc6 {[%clk 0:03:01]} 6. Ndb5 {[%clk 0:03:01]}  Bc5 {[%clk 0:03:00]} 7. Bf4 {[%clk 0:03:01]}  O-O {[%clk 0:02:59]} 8. Bc7 {[%clk 0:03:01]}  Qe7 {[%clk 0:02:59]} 9. Bd6 {[%clk 0:03:02]}  Bxd6 {[%clk 0:02:59]} 10. Qxd6 {[%clk 0:03:02]}  Qd8 {[%clk 0:03:00]} 11. Nc7 {[%clk 0:02:51]}  Rb8 {[%clk 0:02:55]} 12. O-O-O {[%clk 0:02:52]}  a6 {[%clk 0:02:37]} 13. Be2 {[%clk 0:02:35]}  b5 {[%clk 0:01:56]} 14. e5 {[%clk 0:02:34]}  Ne8 {[%clk 0:01:56]} 15. Nxe8 {[%clk 0:02:33]}  Rxe8 {[%clk 0:01:57]} 16. f4 {[%clk 0:02:29]}  Qb6 {[%clk 0:01:52]} 17. Kb1 {[%clk 0:02:25]}  Bb7 {[%clk 0:01:46]} 18. Bd3 {[%clk 0:02:08]}  Rbc8 {[%clk 0:01:18]} 19. Ne4 {[%clk 0:02:05]}  Red8 {[%clk 0:00:50]} 20. f5 {[%clk 0:01:32]}  Qc7 {[%clk 0:00:46]} 21. f6 {[%clk 0:01:26]}  Qxd6 {[%clk 0:00:43]} 22. Nxd6 {[%clk 0:01:22]}  Rc7 {[%clk 0:00:43]} 23. Rhe1 {[%clk 0:01:19]}  Ba8 {[%clk 0:00:39]} 24. Re3 {[%clk 0:01:19]}  Nb4 {[%clk 0:00:37]} 25. fxg7 {[%clk 0:00:45]}  Rc5 {[%clk 0:00:32]} 26. a3 {[%clk 0:00:40]}  Nxd3 {[%clk 0:00:32]} 27. Rdxd3 {[%clk 0:00:41]}  Bxg2 {[%clk 0:00:30]} 28. Rg3 {[%clk 0:00:41]}  Bc6 {[%clk 0:00:28]} 29. Rde3 {[%clk 0:00:37]}  Rd5 {[%clk 0:00:28]} 30. Kc1 {[%clk 0:00:35]}  Rd4 {[%clk 0:00:28]} 31. Re2 {[%clk 0:00:29]}  a5 {[%clk 0:00:27]} 32. Rf2 {[%clk 0:00:29]}  Be4 {[%clk 0:00:17]} 33. Nxf7 {[%clk 0:00:26]}  Rb8 {[%clk 0:00:09]} 34. Nh6# {[%clk 0:00:25]} 1-0


[Site "https://www.chess.com"]

[Event "Titled Tuesday Blitz June 20 Early 2023"]
[White "Raja Rithvik R"]
[Black "Begunov, Konstantin"]
[WhiteFideId "35007394"]
[BlackFideId "4118510"]
[WhiteElo "2395"]
[BlackElo "1993"]
[Result "1-0"]
[Round "1"]
[TimeControl "180+2"]
[Date "2023.06.20"]
[WhiteClock "0:01:35"]
[BlackClock "0:00:09"]
[Board "85"]

1. d4 {[%clk 0:02:55]}  d5 {[%clk 0:03:00]} 2. c4 {[%clk 0:02:55]}  c6 {[%clk 0:03:00]} 3. Nc3 {[%clk 0:02:52]}  Nf6 {[%clk 0:03:01]} 4. e3 {[%clk 0:02:53]}  a6 {[%clk 0:03:00]} 5. Nf3 {[%clk 0:02:52]}  Bg4 {[%clk 0:03:00]} 6. cxd5 {[%clk 0:02:41]}  Bxf3 {[%clk 0:03:00]} 7. Qxf3 {[%clk 0:02:38]}  cxd5 {[%clk 0:03:00]} 8. Bd2 {[%clk 0:02:34]}  Nc6 {[%clk 0:03:00]} 9. Rc1 {[%clk 0:02:31]}  e6 {[%clk 0:03:00]} 10. Bd3 {[%clk 0:02:31]}  Bd6 {[%clk 0:03:00]} 11. O-O {[%clk 0:02:31]}  O-O {[%clk 0:03:00]} 12. Rfd1 {[%clk 0:02:28]}  Rc8 {[%clk 0:02:59]} 13. g3 {[%clk 0:02:25]}  b5 {[%clk 0:02:57]} 14. a3 {[%clk 0:02:22]}  Qb6 {[%clk 0:02:46]} 15. b4 {[%clk 0:02:20]}  Nd7 {[%clk 0:02:21]} 16. Rc2 {[%clk 0:01:54]}  f5 {[%clk 0:01:41]} 17. Nxd5 {[%clk 0:01:49]}  Nxd4 {[%clk 0:00:20]} 18. exd4 {[%clk 0:01:38]}  exd5 {[%clk 0:00:19]} 19. Qxd5+ {[%clk 0:01:38]}  Kh8 {[%clk 0:00:20]} 20. Rxc8 {[%clk 0:01:36]}  Rxc8 {[%clk 0:00:21]} 21. Qxf5 {[%clk 0:01:36]}  g6 {[%clk 0:00:09]} 22. Qxd7 {[%clk 0:01:35]} 1-0


[Site "https://www.chess.com"]

[Event "Titled Tuesday Blitz June 20 Early 2023"]
[White "splendidkid"]
[Black "Vega Gutierrez, Sabrina"]
[BlackFideId "2219026"]
[WhiteElo "2755"]
[BlackElo "2209"]
[Result "1-0"]
[Round "1"]
[TimeControl "180+2"]
[Date "2023.06.20"]
[WhiteClock "0:01:12"]
[BlackClock "0:00:23"]
[Board "89"]

1. d4 {[%clk 0:02:59]}  d5 {[%clk 0:02:59]} 2. c4 {[%clk 0:02:59]}  e6 {[%clk 0:02:59]} 3. Nf3 {[%clk 0:03:00]}  Nf6 {[%clk 0:03:00]} 4. Nc3 {[%clk 0:03:00]}  c6 {[%clk 0:02:58]} 5. Bg5 {[%clk 0:03:00]}  Be7 {[%clk 0:02:50]} 6. e3 {[%clk 0:02:59]}  O-O {[%clk 0:02:49]} 7. Qc2 {[%clk 0:02:59]}  Nbd7 {[%clk 0:02:47]} 8. cxd5 {[%clk 0:02:59]}  exd5 {[%clk 0:02:47]} 9. Bd3 {[%clk 0:02:59]}  Re8 {[%clk 0:02:45]} 10. O-O {[%clk 0:02:59]}  Ne4 {[%clk 0:02:33]} 11. Bxe4 {[%clk 0:02:51]}  dxe4 {[%clk 0:02:29]} 12. Nxe4 {[%clk 0:02:50]}  h6 {[%clk 0:02:19]} 13. Bxe7 {[%clk 0:02:12]}  Qxe7 {[%clk 0:02:19]} 14. Nc3 {[%clk 0:02:09]}  Nf6 {[%clk 0:02:18]} 15. Rab1 {[%clk 0:02:09]}  g6 {[%clk 0:01:46]} 16. Rbc1 {[%clk 0:01:51]}  Bf5 {[%clk 0:01:46]} 17. Qb3 {[%clk 0:01:52]}  Rad8 {[%clk 0:01:36]} 18. Rfe1 {[%clk 0:01:51]}  Ne4 {[%clk 0:01:33]} 19. Ne2 {[%clk 0:01:42]}  Kg7 {[%clk 0:01:32]} 20. Ng3 {[%clk 0:01:38]}  Nxg3 {[%clk 0:01:24]} 21. hxg3 {[%clk 0:01:39]}  h5 {[%clk 0:01:24]} 22. Qc3 {[%clk 0:01:26]}  Rd5 {[%clk 0:01:15]} 23. e4 {[%clk 0:01:18]}  Bxe4 {[%clk 0:01:14]} 24. Nd2 {[%clk 0:01:18]}  f5 {[%clk 0:00:49]} 25. f3 {[%clk 0:01:17]}  Qd7 {[%clk 0:00:23]} 26. fxe4 {[%clk 0:01:12]}  Rxd4 {[%clk 0:00:23]} 1-0


[Site "https://www.chess.com"]